[Event "Titled Tuesday Blitz March 07 Early 2023"]
[White "Leiva, Gianmarco"]
[Black "Liu, Casper"]
[WhiteFideId "3804399"]
[BlackFideId "1454153"]
[WhiteElo "2345"]
[BlackElo "2221"]
[Result "1-0"]
[Round "04"]
[TimeControl "180+2"]
[Date "2023.03.07"]
[WhiteClock "0:00:06"]
[BlackClock "0:00:05"]

1. e4 {[%clk 0:02:48]}  c5 {[%clk 0:02:59]} 2. Nf3 {[%clk 0:02:49]}  e6 {[%clk 0:02:59]} 3. b3 {[%clk 0:02:49]}  Nc6 {[%clk 0:02:59]} 4. Bb2 {[%clk 0:02:49]}  d5 {[%clk 0:02:59]} 5. Bb5 {[%clk 0:02:44]}  dxe4 {[%clk 0:02:58]} 6. Ne5 {[%clk 0:02:42]}  Bd7 {[%clk 0:02:58]} 7. Bxc6 {[%clk 0:02:41]}  Bxc6 {[%clk 0:02:58]} 8. Qh5 {[%clk 0:02:40]}  Qc7 {[%clk 0:02:51]} 9. Na3 {[%clk 0:02:27]}  Nf6 {[%clk 0:02:50]} 10. Qe2 {[%clk 0:02:28]}  Bd6 {[%clk 0:02:48]} 11. Nb5 {[%clk 0:02:27]}  Bxb5 {[%clk 0:02:44]} 12. Qxb5+ {[%clk 0:02:28]}  Ke7 {[%clk 0:02:27]} 13. f4 {[%clk 0:02:28]}  a6 {[%clk 0:02:11]} 14. Qe2 {[%clk 0:02:29]}  Rhd8 {[%clk 0:02:05]} 15. g4 {[%clk 0:02:19]}  Nd5 {[%clk 0:01:44]} 16. Qxe4 {[%clk 0:02:16]}  f6 {[%clk 0:01:44]} 17. O-O {[%clk 0:01:23]}  Nxf4 {[%clk 0:01:31]} 18. Nc4 {[%clk 0:00:54]}  Nh3+ {[%clk 0:01:31]} 19. Kh1 {[%clk 0:00:46]}  Ng5 {[%clk 0:01:31]} 20. Qg2 {[%clk 0:00:42]}  Bf4 {[%clk 0:01:30]} 21. h4 {[%clk 0:00:37]}  Nf7 {[%clk 0:01:23]} 22. Qe4 {[%clk 0:00:38]}  Bxd2 {[%clk 0:01:16]} 23. g5 {[%clk 0:00:21]}  fxg5 {[%clk 0:00:53]} 24. Bxg7 {[%clk 0:00:22]}  Qg3 {[%clk 0:00:50]} 25. Bf6+ {[%clk 0:00:21]}  Kf8 {[%clk 0:00:48]} 26. hxg5 {[%clk 0:00:09]}  Qh3+ {[%clk 0:00:04]} 27. Kg1 {[%clk 0:00:10]}  Qg3+ {[%clk 0:00:05]} 28. Qg2 {[%clk 0:00:10]}  Qxg2+ {[%clk 0:00:05]} 29. Kxg2 {[%clk 0:00:11]}  Rd5 {[%clk 0:00:05]} 30. Nb6 {[%clk 0:00:05]}  Rf5 {[%clk 0:00:04]} 31. Rxf5 {[%clk 0:00:05]}  exf5 {[%clk 0:00:05]} 32. Nxa8 {[%clk 0:00:06]}  f4 {[%clk 0:00:05]} 33. Kf3 {[%clk 0:00:06]}  Nd6 {[%clk 0:00:05]} 34. Rd1 {[%clk 0:00:06]} 1-0


[Site "https://www.chess.com"]

[Event "Titled Tuesday Blitz March 07 Early 2023"]
[White "Jimenez Almeida, Luis David"]
[Black "Smith, Garrett L"]
[WhiteFideId "22242244"]
[BlackFideId "2024829"]
[WhiteElo "2245"]
[BlackElo "2284"]
[Result "1-0"]
[Round "04"]
[TimeControl "180+2"]
[Date "2023.03.07"]
[WhiteClock "0:00:39"]
[BlackClock "0:00:10"]

1. e4 {[%clk 0:03:00]}  c5 {[%clk 0:03:00]} 2. Nc3 {[%clk 0:03:00]}  Nc6 {[%clk 0:03:00]} 3. Nge2 {[%clk 0:03:00]}  e5 {[%clk 0:02:57]} 4. g3 {[%clk 0:02:56]}  Nf6 {[%clk 0:02:57]} 5. Bg2 {[%clk 0:02:56]}  Be7 {[%clk 0:02:58]} 6. d3 {[%clk 0:02:56]}  h6 {[%clk 0:02:58]} 7. h3 {[%clk 0:02:54]}  d6 {[%clk 0:02:58]} 8. Be3 {[%clk 0:02:55]}  Be6 {[%clk 0:02:56]} 9. Nd5 {[%clk 0:02:55]}  Bxd5 {[%clk 0:02:45]} 10. exd5 {[%clk 0:02:56]}  Nb4 {[%clk 0:02:44]} 11. Nc3 {[%clk 0:02:52]}  Qd7 {[%clk 0:02:43]} 12. Qd2 {[%clk 0:02:48]}  b5 {[%clk 0:02:39]} 13. O-O {[%clk 0:02:41]}  O-O {[%clk 0:02:28]} 14. f4 {[%clk 0:02:23]}  Rab8 {[%clk 0:02:21]} 15. a3 {[%clk 0:02:19]}  Na6 {[%clk 0:02:20]} 16. fxe5 {[%clk 0:02:18]}  dxe5 {[%clk 0:02:20]} 17. Bxh6 {[%clk 0:02:10]}  gxh6 {[%clk 0:02:19]} 18. Qxh6 {[%clk 0:02:11]}  Rb6 {[%clk 0:01:55]} 19. Rae1 {[%clk 0:01:45]}  Nxd5 {[%clk 0:01:39]} 20. Qh5 {[%clk 0:01:45]}  Nxc3 {[%clk 0:01:35]} 21. bxc3 {[%clk 0:01:46]}  Qd6 {[%clk 0:01:26]} 22. Rxe5 {[%clk 0:01:39]}  Nc7 {[%clk 0:01:11]} 23. Be4 {[%clk 0:01:38]}  Qh6 {[%clk 0:00:42]} 24. Qxh6 {[%clk 0:01:31]}  Rxh6 {[%clk 0:00:42]} 25. Rxe7 {[%clk 0:01:31]}  Ne6 {[%clk 0:00:43]} 26. h4 {[%clk 0:01:24]}  a5 {[%clk 0:00:39]} 27. Kg2 {[%clk 0:01:19]}  b4 {[%clk 0:00:34]} 28. cxb4 {[%clk 0:01:18]}  axb4 {[%clk 0:00:35]} 29. axb4 {[%clk 0:01:18]}  cxb4 {[%clk 0:00:36]} 30. Rb7 {[%clk 0:01:15]}  Nd4 {[%clk 0:00:34]} 31. Rf2 {[%clk 0:01:12]}  Rc8 {[%clk 0:00:25]} 32. Rxb4 {[%clk 0:01:05]}  Nxc2 {[%clk 0:00:25]} 33. Rb7 {[%clk 0:00:55]}  f6 {[%clk 0:00:17]} 34. g4 {[%clk 0:00:42]}  Rxh4 {[%clk 0:00:13]} 35. Kg3 {[%clk 0:00:40]}  Rh6 {[%clk 0:00:13]} 36. Bf5 {[%clk 0:00:40]}  Rd8 {[%clk 0:00:10]} 37. Rxc2 {[%clk 0:00:39]} 1-0


[Site "https://www.chess.com"]

[Event "Titled Tuesday Blitz March 07 Early 2023"]
[White "Odegov, Artem"]
[Black "Afanasieva, Alexandra"]
[WhiteFideId "34183644"]
[BlackFideId "34126926"]
[WhiteElo "2300"]
[BlackElo "1763"]
[Result "1-0"]
[Round "04"]
[TimeControl "180+2"]
[Date "2023.03.07"]
[WhiteClock "0:01:25"]
[BlackClock "0:00:04"]

1. d4 {[%clk 0:03:00]}  Nf6 {[%clk 0:02:59]} 2. c4 {[%clk 0:02:59]}  e6 {[%clk 0:03:00]} 3. Nf3 {[%clk 0:02:59]}  b6 {[%clk 0:03:00]} 4. g3 {[%clk 0:02:58]}  Ba6 {[%clk 0:02:59]} 5. b3 {[%clk 0:02:59]}  d5 {[%clk 0:02:55]} 6. Bg2 {[%clk 0:02:58]}  Bb7 {[%clk 0:02:56]} 7. Nbd2 {[%clk 0:02:56]}  Be7 {[%clk 0:02:53]} 8. O-O {[%clk 0:02:55]}  O-O {[%clk 0:02:54]} 9. Bb2 {[%clk 0:02:54]}  c5 {[%clk 0:02:53]} 10. e3 {[%clk 0:02:53]}  Nc6 {[%clk 0:02:52]} 11. Qe2 {[%clk 0:02:51]}  Ne4 {[%clk 0:02:46]} 12. Nxe4 {[%clk 0:02:43]}  dxe4 {[%clk 0:02:47]} 13. Ne5 {[%clk 0:02:43]}  Nxe5 {[%clk 0:02:44]} 14. dxe5 {[%clk 0:02:42]}  f5 {[%clk 0:02:25]} 15. exf6 {[%clk 0:02:35]}  Bxf6 {[%clk 0:02:23]} 16. Rad1 {[%clk 0:02:35]}  Qe7 {[%clk 0:02:23]} 17. Bxf6 {[%clk 0:02:29]}  Rxf6 {[%clk 0:02:17]} 18. Qg4 {[%clk 0:02:25]}  Rg6 {[%clk 0:02:01]} 19. Qf4 {[%clk 0:02:19]}  Rf8 {[%clk 0:01:41]} 20. Qd6 {[%clk 0:02:18]}  Qf6 {[%clk 0:01:41]} 21. Rd2 {[%clk 0:02:13]}  Qf5 {[%clk 0:01:26]} 22. Qc7 {[%clk 0:02:03]}  Ba8 {[%clk 0:00:51]} 23. Rd7 {[%clk 0:01:57]}  e5 {[%clk 0:00:30]} 24. Re7 {[%clk 0:01:49]}  Rc6 {[%clk 0:00:11]} 25. Qxa7 {[%clk 0:01:46]}  Re6 {[%clk 0:00:09]} 26. Rxg7+ {[%clk 0:01:40]}  Kh8 {[%clk 0:00:09]} 27. Re7 {[%clk 0:01:38]}  Ref6 {[%clk 0:00:07]} 28. h4 {[%clk 0:01:32]}  Qh5 {[%clk 0:00:07]} 29. Qc7 {[%clk 0:01:28]}  R6f7 {[%clk 0:00:04]} 30. Rxf7 {[%clk 0:01:25]} 1-0


[Site "https://www.chess.com"]

[Event "Titled Tuesday Blitz March 07 Early 2023"]
[White "Mohamed, Saeed Laily"]
[Black "Yelisieiev, Yevhenii"]
[WhiteFideId "9314946"]
[BlackFideId "14139642"]
[WhiteElo "1767"]
[BlackElo "2447"]
[Result "0-1"]
[Round "04"]
[TimeControl "180+2"]
[Date "2023.03.07"]
[WhiteClock "0:00:11"]
[BlackClock "0:01:00"]

1. d4 {[%clk 0:03:00]}  d6 {[%clk 0:03:00]} 2. e4 {[%clk 0:02:59]}  Nf6 {[%clk 0:03:01]} 3. Nc3 {[%clk 0:03:00]}  e5 {[%clk 0:03:02]} 4. dxe5 {[%clk 0:02:59]}  dxe5 {[%clk 0:03:03]} 5. Qxd8+ {[%clk 0:03:00]}  Kxd8 {[%clk 0:03:04]} 6. Bg5 {[%clk 0:02:56]}  c6 {[%clk 0:03:04]} 7. O-O-O+ {[%clk 0:02:55]}  Nd7 {[%clk 0:03:04]} 8. f4 {[%clk 0:02:52]}  Kc7 {[%clk 0:02:45]} 9. fxe5 {[%clk 0:02:47]}  Ng4 {[%clk 0:02:45]} 10. Nh3 {[%clk 0:02:38]}  Ndxe5 {[%clk 0:02:37]} 11. Bf4 {[%clk 0:02:27]}  f6 {[%clk 0:02:33]} 12. Be2 {[%clk 0:02:27]}  Bc5 {[%clk 0:02:31]} 13. Bxe5+ {[%clk 0:01:44]}  Nxe5 {[%clk 0:01:57]} 14. Ng1 {[%clk 0:01:21]}  Ng4 {[%clk 0:01:47]} 15. Bxg4 {[%clk 0:01:17]}  Bxg4 {[%clk 0:01:47]} 16. Nf3 {[%clk 0:01:18]}  Rhe8 {[%clk 0:01:45]} 17. a3 {[%clk 0:01:13]}  b5 {[%clk 0:01:37]} 18. h3 {[%clk 0:00:51]}  Bh5 {[%clk 0:01:35]} 19. b4 {[%clk 0:00:46]}  Bf2 {[%clk 0:01:24]} 20. g4 {[%clk 0:00:43]}  Bg6 {[%clk 0:01:24]} 21. Rhf1 {[%clk 0:00:41]}  Bg3 {[%clk 0:01:23]} 22. Nd4 {[%clk 0:00:31]}  Bxe4 {[%clk 0:01:16]} 23. Nxe4 {[%clk 0:00:26]}  Rxe4 {[%clk 0:01:16]} 24. Nf5 {[%clk 0:00:25]}  Bf4+ {[%clk 0:01:13]} 25. Kb2 {[%clk 0:00:22]}  g6 {[%clk 0:01:11]} 26. Nh4 {[%clk 0:00:21]}  a5 {[%clk 0:01:06]} 27. Ng2 {[%clk 0:00:15]}  Be5+ {[%clk 0:01:05]} 28. Kb3 {[%clk 0:00:15]}  axb4 {[%clk 0:01:05]} 29. axb4 {[%clk 0:00:14]}  Ra4 {[%clk 0:01:01]} 30. Rfe1 {[%clk 0:00:11]}  Rexb4# {[%clk 0:01:00]} 0-1


[Site "https://www.chess.com"]

[Event "Titled Tuesday Blitz March 07 Early 2023"]
[White "Fiorito, Joaquin"]
[Black "lisjakzlatko1"]
[WhiteFideId "180173"]
[WhiteElo "2157"]
[BlackElo "2182"]
[Result "1-0"]
[Round "04"]
[TimeControl "180+2"]
[Date "2023.03.07"]
[WhiteClock "0:01:46"]
[BlackClock "0:00:16"]

1. d4 {[%clk 0:03:00]}  d6 {[%clk 0:02:58]} 2. e4 {[%clk 0:03:00]}  Nf6 {[%clk 0:02:57]} 3. Nc3 {[%clk 0:02:58]}  c6 {[%clk 0:02:58]} 4. f4 {[%clk 0:02:58]}  Qa5 {[%clk 0:02:57]} 5. Bd3 {[%clk 0:02:57]}  e5 {[%clk 0:02:55]} 6. Nf3 {[%clk 0:02:55]}  Bg4 {[%clk 0:02:50]} 7. dxe5 {[%clk 0:02:53]}  dxe5 {[%clk 0:02:49]} 8. O-O {[%clk 0:02:49]}  Nbd7 {[%clk 0:02:48]} 9. h3 {[%clk 0:02:48]}  Bxf3 {[%clk 0:02:44]} 10. Qxf3 {[%clk 0:02:49]}  Be7 {[%clk 0:02:37]} 11. a3 {[%clk 0:02:46]}  b5 {[%clk 0:02:34]} 12. Bd2 {[%clk 0:02:45]}  Qc7 {[%clk 0:02:31]} 13. Kh1 {[%clk 0:02:33]}  O-O {[%clk 0:02:30]} 14. f5 {[%clk 0:02:33]}  a5 {[%clk 0:02:22]} 15. g4 {[%clk 0:02:30]}  h6 {[%clk 0:02:14]} 16. g5 {[%clk 0:02:26]}  hxg5 {[%clk 0:02:10]} 17. Bxg5 {[%clk 0:02:26]}  Rfe8 {[%clk 0:01:57]} 18. Rg1 {[%clk 0:02:25]}  Bf8 {[%clk 0:01:40]} 19. Rg2 {[%clk 0:02:17]}  Nh7 {[%clk 0:01:36]} 20. Be3 {[%clk 0:02:10]}  Ndf6 {[%clk 0:01:29]} 21. Rag1 {[%clk 0:02:10]}  b4 {[%clk 0:01:17]} 22. Rxg7+ {[%clk 0:01:53]}  Bxg7 {[%clk 0:01:16]} 23. Bh6 {[%clk 0:01:52]}  Nh5 {[%clk 0:00:39]} 24. Qxh5 {[%clk 0:01:48]}  f6 {[%clk 0:00:39]} 25. Bxg7 {[%clk 0:01:47]}  Qxg7 {[%clk 0:00:38]} 26. Bc4+ {[%clk 0:01:47]}  Kh8 {[%clk 0:00:38]} 27. Rxg7 {[%clk 0:01:48]}  Kxg7 {[%clk 0:00:37]} 28. Ne2 {[%clk 0:01:46]}  bxa3 {[%clk 0:00:27]} 29. bxa3 {[%clk 0:01:47]}  Red8 {[%clk 0:00:27]} 30. Ng3 {[%clk 0:01:46]}  Ng5 {[%clk 0:00:16]} 31. Qg6+ {[%clk 0:01:46]} 1-0


[Site "https://www.chess.com"]

[Event "Titled Tuesday Blitz March 07 Early 2023"]
[White "Moksh Amit Doshi"]
[Black "Delorme, Alban"]
[WhiteFideId "25064967"]
[BlackFideId "623636"]
[WhiteElo "2297"]
[BlackElo "2196"]
[Result "1-0"]
[Round "04"]
[TimeControl "180+2"]
[Date "2023.03.07"]
[WhiteClock "0:00:46"]
[BlackClock "0:00:55"]

1. c4 {[%clk 0:02:58]}  Nf6 {[%clk 0:02:59]} 2. g3 {[%clk 0:02:58]}  g6 {[%clk 0:03:00]} 3. Bg2 {[%clk 0:02:58]}  Bg7 {[%clk 0:03:00]} 4. Nc3 {[%clk 0:02:58]}  O-O {[%clk 0:03:01]} 5. e4 {[%clk 0:02:54]}  d6 {[%clk 0:03:01]} 6. Nge2 {[%clk 0:02:55]}  c5 {[%clk 0:03:02]} 7. O-O {[%clk 0:02:55]}  Nc6 {[%clk 0:03:02]} 8. d3 {[%clk 0:02:56]}  Rb8 {[%clk 0:02:59]} 9. h3 {[%clk 0:02:53]}  a6 {[%clk 0:02:59]} 10. f4 {[%clk 0:02:52]}  Ne8 {[%clk 0:02:49]} 11. Be3 {[%clk 0:02:49]}  b5 {[%clk 0:02:45]} 12. Qd2 {[%clk 0:02:41]}  Nc7 {[%clk 0:02:35]} 13. Kh2 {[%clk 0:02:35]}  Ne6 {[%clk 0:02:32]} 14. f5 {[%clk 0:02:29]}  Ned4 {[%clk 0:02:32]} 15. Nd5 {[%clk 0:02:09]}  e6 {[%clk 0:02:18]} 16. f6 {[%clk 0:01:55]}  Bh8 {[%clk 0:02:18]} 17. Bxd4 {[%clk 0:01:38]}  exd5 {[%clk 0:02:09]} 18. Be3 {[%clk 0:01:38]}  dxc4 {[%clk 0:02:01]} 19. Bg5 {[%clk 0:01:25]}  cxd3 {[%clk 0:01:58]} 20. Qxd3 {[%clk 0:01:26]}  Ne5 {[%clk 0:01:58]} 21. Qc2 {[%clk 0:01:23]}  Re8 {[%clk 0:01:49]} 22. Rad1 {[%clk 0:01:20]}  Be6 {[%clk 0:01:40]} 23. Nf4 {[%clk 0:01:19]}  Qc7 {[%clk 0:01:37]} 24. Nd5 {[%clk 0:01:07]}  Bxd5 {[%clk 0:01:36]} 25. Rxd5 {[%clk 0:01:08]}  c4 {[%clk 0:01:29]} 26. Rfd1 {[%clk 0:01:08]}  Rbd8 {[%clk 0:01:26]} 27. Qd2 {[%clk 0:01:03]}  Nd3 {[%clk 0:01:24]} 28. Qc3 {[%clk 0:01:04]}  Re5 {[%clk 0:01:22]} 29. R1xd3 {[%clk 0:00:59]}  Rxg5 {[%clk 0:01:14]} 30. Rxg5 {[%clk 0:00:57]}  Bxf6 {[%clk 0:01:13]} 31. Qxf6 {[%clk 0:00:55]}  cxd3 {[%clk 0:01:14]} 32. Rd5 {[%clk 0:00:56]}  Re8 {[%clk 0:00:56]} 33. Rxd3 {[%clk 0:00:55]}  Re6 {[%clk 0:00:56]} 34. Qc3 {[%clk 0:00:54]}  Qe7 {[%clk 0:00:55]} 35. Qd4 {[%clk 0:00:50]}  h5 {[%clk 0:00:55]} 36. h4 {[%clk 0:00:50]}  g5 {[%clk 0:00:55]} 37. Rc3 {[%clk 0:00:48]}  gxh4 {[%clk 0:00:54]} 38. Rc8+ {[%clk 0:00:47]}  Kh7 {[%clk 0:00:55]} 39. Qh8+ {[%clk 0:00:45]}  Kg6 {[%clk 0:00:55]} 40. Rg8# {[%clk 0:00:46]} 1-0


[Site "https://www.chess.com"]

[Event "Titled Tuesday Blitz March 07 Early 2023"]
[White "Hebden, Mark L"]
[Black "Zahid, Sanatan"]
[WhiteFideId "400084"]
[BlackFideId "10201963"]
[WhiteElo "2436"]
[BlackElo "1865"]
[Result "0-1"]
[Round "04"]
[TimeControl "180+2"]
[Date "2023.03.07"]
[WhiteClock "0:00:03"]
[BlackClock "0:00:08"]

1. d4 {[%clk 0:03:00]}  Nf6 {[%clk 0:02:50]} 2. Nf3 {[%clk 0:03:01]}  e6 {[%clk 0:02:46]} 3. c3 {[%clk 0:03:00]}  b6 {[%clk 0:02:43]} 4. Bg5 {[%clk 0:03:01]}  Bb7 {[%clk 0:02:35]} 5. Nbd2 {[%clk 0:03:01]}  h6 {[%clk 0:02:19]} 6. Bxf6 {[%clk 0:03:00]}  Qxf6 {[%clk 0:02:20]} 7. e4 {[%clk 0:03:00]}  g6 {[%clk 0:02:20]} 8. Bd3 {[%clk 0:02:57]}  Bg7 {[%clk 0:02:20]} 9. a4 {[%clk 0:02:56]}  a6 {[%clk 0:02:20]} 10. O-O {[%clk 0:02:54]}  O-O {[%clk 0:02:20]} 11. Qe2 {[%clk 0:02:50]}  d6 {[%clk 0:02:19]} 12. e5 {[%clk 0:02:48]}  dxe5 {[%clk 0:02:18]} 13. Nxe5 {[%clk 0:02:44]}  Qe7 {[%clk 0:02:09]} 14. Be4 {[%clk 0:02:42]}  c5 {[%clk 0:02:07]} 15. Qf3 {[%clk 0:02:39]}  Bxe4 {[%clk 0:02:00]} 16. Nxe4 {[%clk 0:02:36]}  cxd4 {[%clk 0:01:55]} 17. cxd4 {[%clk 0:02:34]}  Ra7 {[%clk 0:01:38]} 18. Rac1 {[%clk 0:02:30]}  Rc7 {[%clk 0:01:32]} 19. Rc3 {[%clk 0:02:28]}  Rxc3 {[%clk 0:01:30]} 20. bxc3 {[%clk 0:02:19]}  Nd7 {[%clk 0:01:29]} 21. Nxd7 {[%clk 0:02:04]}  Qxd7 {[%clk 0:01:27]} 22. Ra1 {[%clk 0:02:04]}  Rc8 {[%clk 0:01:25]} 23. h4 {[%clk 0:02:01]}  Qc6 {[%clk 0:01:18]} 24. Rb1 {[%clk 0:01:56]}  b5 {[%clk 0:01:04]} 25. axb5 {[%clk 0:01:55]}  axb5 {[%clk 0:01:05]} 26. Nf6+ {[%clk 0:01:48]}  Bxf6 {[%clk 0:01:04]} 27. Qxf6 {[%clk 0:01:47]}  h5 {[%clk 0:00:48]} 28. g3 {[%clk 0:01:35]}  Ra8 {[%clk 0:00:41]} 29. Qe5 {[%clk 0:01:28]}  Qxc3 {[%clk 0:00:40]} 30. Rxb5 {[%clk 0:01:27]}  Qc1+ {[%clk 0:00:36]} 31. Kh2 {[%clk 0:01:24]}  Qd2 {[%clk 0:00:26]} 32. Qf6 {[%clk 0:01:14]}  Qc2 {[%clk 0:00:16]} 33. Rb7 {[%clk 0:01:10]}  Rf8 {[%clk 0:00:15]} 34. Rd7 {[%clk 0:01:07]}  Qf5 {[%clk 0:00:15]} 35. Qxf5 {[%clk 0:01:06]}  gxf5 {[%clk 0:00:16]} 36. Kg2 {[%clk 0:01:04]}  Kg7 {[%clk 0:00:17]} 37. Kf3 {[%clk 0:01:05]}  Kf6 {[%clk 0:00:17]} 38. d5 {[%clk 0:01:03]}  Ra8 {[%clk 0:00:11]} 39. dxe6 {[%clk 0:01:02]}  fxe6 {[%clk 0:00:12]} 40. Rh7 {[%clk 0:01:01]}  Kg6 {[%clk 0:00:12]} 41. Re7 {[%clk 0:01:01]}  Ra3+ {[%clk 0:00:09]} 42. Ke2 {[%clk 0:00:59]}  Ra6 {[%clk 0:00:08]} 43. Ke3 {[%clk 0:00:57]}  Ra3+ {[%clk 0:00:08]} 44. Ke2 {[%clk 0:00:56]}  Kf6 {[%clk 0:00:08]} 45. Rh7 {[%clk 0:00:56]}  Ke5 {[%clk 0:00:08]} 46. Rxh5 {[%clk 0:00:55]}  Ke4 {[%clk 0:00:09]} 47. Rh6 {[%clk 0:00:49]}  Ra2+ {[%clk 0:00:09]} 48. Ke1 {[%clk 0:00:47]}  e5 {[%clk 0:00:08]} 49. Rf6 {[%clk 0:00:46]}  f4 {[%clk 0:00:08]} 50. gxf4 {[%clk 0:00:42]}  exf4 {[%clk 0:00:09]} 51. h5 {[%clk 0:00:37]}  Kf3 {[%clk 0:00:09]} 52. h6 {[%clk 0:00:30]}  Re2+ {[%clk 0:00:09]} 53. Kf1 {[%clk 0:00:29]}  Rxf2+ {[%clk 0:00:09]} 54. Kg1 {[%clk 0:00:29]}  Rg2+ {[%clk 0:00:09]} 55. Kh1 {[%clk 0:00:29]}  Rg5 {[%clk 0:00:10]} 56. Kh2 {[%clk 0:00:25]}  Rh5+ {[%clk 0:00:08]} 57. Kg1 {[%clk 0:00:25]}  Ra5 {[%clk 0:00:06]} 58. Kh2 {[%clk 0:00:24]}  Rg5 {[%clk 0:00:05]} 59. Kh1 {[%clk 0:00:21]}  Kg3 {[%clk 0:00:06]} 60. Kg1 {[%clk 0:00:16]}  Rh5 {[%clk 0:00:06]} 61. Rg6+ {[%clk 0:00:14]}  Kf3 {[%clk 0:00:07]} 62. Rf6 {[%clk 0:00:12]}  Re5 {[%clk 0:00:07]} 63. h7 {[%clk 0:00:11]}  Rg5+ {[%clk 0:00:07]} 64. Kf1 {[%clk 0:00:10]}  Rh5 {[%clk 0:00:07]} 65. Rg6 {[%clk 0:00:04]}  Rh1+ {[%clk 0:00:07]} 66. Rg1 {[%clk 0:00:03]}  Rxh7 {[%clk 0:00:08]} 0-1


[Site "https://www.chess.com"]

[Event "Titled Tuesday Blitz March 07 Early 2023"]
[White "Real_OceanStorm"]
[Black "Bruned, Yvain"]
[BlackFideId "2250292"]
[WhiteElo "2761"]
[BlackElo "2183"]
[Result "1-0"]
[Round "04"]
[TimeControl "180+2"]
[Date "2023.03.07"]
[WhiteClock "0:00:40"]
[BlackClock "0:00:08"]

1. e4 {[%clk 0:02:49]}  b6 {[%clk 0:03:00]} 2. d4 {[%clk 0:02:49]}  Bb7 {[%clk 0:03:00]} 3. Nf3 {[%clk 0:02:49]}  e6 {[%clk 0:03:01]} 4. Nc3 {[%clk 0:02:48]}  Bb4 {[%clk 0:03:01]} 5. Bd3 {[%clk 0:02:48]}  Nf6 {[%clk 0:02:59]} 6. Bg5 {[%clk 0:02:47]}  h6 {[%clk 0:02:58]} 7. Bxf6 {[%clk 0:02:47]}  Qxf6 {[%clk 0:02:58]} 8. O-O {[%clk 0:02:47]}  Bxc3 {[%clk 0:02:58]} 9. bxc3 {[%clk 0:02:48]}  d6 {[%clk 0:02:57]} 10. Re1 {[%clk 0:02:48]}  O-O {[%clk 0:02:56]} 11. e5 {[%clk 0:02:47]}  Qe7 {[%clk 0:02:56]} 12. a4 {[%clk 0:02:47]}  a5 {[%clk 0:02:54]} 13. c4 {[%clk 0:02:48]}  dxe5 {[%clk 0:02:52]} 14. Nxe5 {[%clk 0:02:47]}  Qd8 {[%clk 0:02:49]} 15. Qg4 {[%clk 0:02:44]}  Nd7 {[%clk 0:02:47]} 16. Nxd7 {[%clk 0:02:42]}  Qxd7 {[%clk 0:02:48]} 17. d5 {[%clk 0:02:32]}  Rae8 {[%clk 0:02:38]} 18. Qe4 {[%clk 0:02:30]}  g6 {[%clk 0:02:17]} 19. dxe6 {[%clk 0:02:19]}  Qxe6 {[%clk 0:01:30]} 20. Qxb7 {[%clk 0:02:18]}  Qxe1+ {[%clk 0:01:29]} 21. Rxe1 {[%clk 0:02:18]}  Rxe1+ {[%clk 0:01:29]} 22. Bf1 {[%clk 0:02:19]}  Rd8 {[%clk 0:01:29]} 23. g3 {[%clk 0:01:59]}  Rdd1 {[%clk 0:01:28]} 24. Qc8+ {[%clk 0:01:55]}  Kg7 {[%clk 0:01:23]} 25. Qxc7 {[%clk 0:01:54]}  Rxf1+ {[%clk 0:01:22]} 26. Kg2 {[%clk 0:01:55]}  Rg1+ {[%clk 0:01:23]} 27. Kf3 {[%clk 0:01:55]}  Rb1 {[%clk 0:01:22]} 28. c5 {[%clk 0:01:55]}  bxc5 {[%clk 0:01:23]} 29. Qxa5 {[%clk 0:01:55]}  Ra1 {[%clk 0:01:05]} 30. Qc3+ {[%clk 0:01:49]}  Kg8 {[%clk 0:01:03]} 31. a5 {[%clk 0:01:49]}  Ra2 {[%clk 0:01:02]} 32. Qxc5 {[%clk 0:01:48]}  Rga1 {[%clk 0:01:01]} 33. h4 {[%clk 0:01:48]}  h5 {[%clk 0:01:00]} 34. c4 {[%clk 0:01:48]}  Rxa5 {[%clk 0:00:59]} 35. Qd6 {[%clk 0:01:49]}  R5a4 {[%clk 0:00:53]} 36. Qb8+ {[%clk 0:01:49]}  Kh7 {[%clk 0:00:46]} 37. Qc7 {[%clk 0:01:48]}  Kg8 {[%clk 0:00:42]} 38. c5 {[%clk 0:01:35]}  Rc4 {[%clk 0:00:32]} 39. Qb8+ {[%clk 0:01:34]}  Kh7 {[%clk 0:00:31]} 40. Qd6 {[%clk 0:01:30]}  Rac1 {[%clk 0:00:28]} 41. Qf8 {[%clk 0:01:28]}  R1c3+ {[%clk 0:00:27]} 42. Kg2 {[%clk 0:01:28]}  Rxc5 {[%clk 0:00:27]} 43. Qxf7+ {[%clk 0:01:28]}  Kh6 {[%clk 0:00:28]} 44. Qe8 {[%clk 0:01:28]}  Kh7 {[%clk 0:00:26]} 45. Qd7+ {[%clk 0:01:28]}  Kh6 {[%clk 0:00:26]} 46. Qd4 {[%clk 0:01:28]}  Rc8 {[%clk 0:00:23]} 47. Qe5 {[%clk 0:01:22]}  Kh7 {[%clk 0:00:23]} 48. g4 {[%clk 0:01:11]}  hxg4 {[%clk 0:00:22]} 49. Qe7+ {[%clk 0:01:10]}  Kh6 {[%clk 0:00:21]} 50. Qg5+ {[%clk 0:01:10]}  Kh7 {[%clk 0:00:22]} 51. h5 {[%clk 0:01:03]}  gxh5 {[%clk 0:00:20]} 52. Qxh5+ {[%clk 0:01:03]}  Kg7 {[%clk 0:00:21]} 53. Qxg4+ {[%clk 0:01:04]}  Kh7 {[%clk 0:00:22]} 54. Qd4 {[%clk 0:01:03]}  R3c6 {[%clk 0:00:19]} 55. Qd7+ {[%clk 0:01:03]}  Kh6 {[%clk 0:00:19]} 56. Qd2+ {[%clk 0:01:03]}  Kh7 {[%clk 0:00:18]} 57. Qd3+ {[%clk 0:01:02]}  Kh6 {[%clk 0:00:18]} 58. Qf5 {[%clk 0:01:00]}  Rg6+ {[%clk 0:00:18]} 59. Kf1 {[%clk 0:01:00]}  Rcg8 {[%clk 0:00:18]} 60. f4 {[%clk 0:00:59]}  Rg1+ {[%clk 0:00:15]} 61. Ke2 {[%clk 0:00:59]}  R1g2+ {[%clk 0:00:16]} 62. Kf3 {[%clk 0:00:59]}  R2g3+ {[%clk 0:00:16]} 63. Ke4 {[%clk 0:00:50]}  Re8+ {[%clk 0:00:13]} 64. Kd4 {[%clk 0:00:49]}  Rgg8 {[%clk 0:00:10]} 65. Qh3+ {[%clk 0:00:44]}  Kg7 {[%clk 0:00:10]} 66. Kc3 {[%clk 0:00:44]}  Kf6 {[%clk 0:00:11]} 67. Kd2 {[%clk 0:00:44]}  Rd8+ {[%clk 0:00:11]} 68. Kc3 {[%clk 0:00:45]}  Rde8 {[%clk 0:00:12]} 69. Qh5 {[%clk 0:00:43]}  Rc8+ {[%clk 0:00:11]} 70. Kd2 {[%clk 0:00:43]}  Rcd8+ {[%clk 0:00:11]} 71. Ke2 {[%clk 0:00:43]}  Rde8+ {[%clk 0:00:12]} 72. Kf2 {[%clk 0:00:43]}  Ref8 {[%clk 0:00:11]} 73. Kf3 {[%clk 0:00:41]}  Re8 {[%clk 0:00:11]} 74. Qb5 {[%clk 0:00:40]}  Re7 {[%clk 0:00:09]} 75. Qd3 {[%clk 0:00:39]}  Rgg7 {[%clk 0:00:09]} 76. Qd8 {[%clk 0:00:39]}  Kf7 {[%clk 0:00:09]} 77. f5 {[%clk 0:00:39]}  Rg5 {[%clk 0:00:08]} 78. Kf4 {[%clk 0:00:39]}  Rg1 {[%clk 0:00:08]} 79. Qd5+ {[%clk 0:00:39]}  Kf8 {[%clk 0:00:07]} 80. Qc5 {[%clk 0:00:39]}  Rf1+ {[%clk 0:00:07]} 81. Kg5 {[%clk 0:00:40]}  Kf7 {[%clk 0:00:08]} 82. Qc4+ {[%clk 0:00:40]} 1-0


[Site "https://www.chess.com"]